Cogmind - Beta 14 @@@ ROGUE MODE // 2024.11.14 @ 15:25:48 Player: Fangrelle Result: Destroyed by as-93534 with Assembled Maul Performance ------------- Evolutions (0) 0 Regions Visited (2) 400 Robots Destroyed (27) 135 Value Destroyed (637) 637 Prototype IDs (0) 0 Alien Tech Used (0) 0 Bonus (0) 0 TOTAL SCORE: 1172 Bonus ------- None Cogmind --------- Core Integrity 0/250 Matter 171/300 Energy 250/250 System Corruption 5% Temperature Cool (19) Movement Core (850) Ox16 Location -10/Mines Parts ------- > --- POWER (1) -------- Ion Engine > --- PROPULSION (2) --- (None) > --- UTILITY (2) ------ High-capacity Storage Unit > --- WEAPON (2) ------- Rocket Launcher > --- INVENTORY (20) --- Huge Storage Unit Large Matter Pod (69) Experimental Sensor Array Signal Interpreter Tractor Beam Mining Laser Peak State ------------ > --- POWER ------------ Light Nuclear Core > --- PROPULSION ------- Aluminum Leg Aluminum Leg > --- UTILITY ---------- Improved Heat Sink High-capacity Storage Unit > --- WEAPON ----------- Beam Cannon Beam Cannon > --- INVENTORY -------- Ion Engine Compact Wheel Compact Wheel Huge Storage Unit Large Matter Pod Signal Interpreter Tractor Beam EM Pulse Gun Grenade Launcher Mining Laser [Rating: 12] Favorites ----------- Power Ion Engine Engine Ion Engine Power Core Light Nuclear Core Propulsion Aluminum Leg Treads Light Treads Leg Aluminum Leg Wheel Compact Wheel Utility High-capacity Storage Unit Device Improved Heat Sink Storage High-capacity Storage Unit Weapon Assault Rifle Energy Gun EM Pulse Gun Energy Cannon Beam Cannon Ballistic Gun Assault Rifle Launcher Grenade Launcher Build | -11 -10 -10 ------- Run | Yrd Mat Min Slots Evolved . | . . . Power . | . . . Propulsion . | . . . Utility . | . . . Weapon . | . . . Parts Attached 21 | 3 12 6 Power 4 | . 3 1 Engine 3 | . 2 1 Core 1 | . 1 . Reactor . | . . . Propulsion 6 | 2 2 2 Treads 2 | 2 . . Leg 2 | . 2 . Wheel 2 | . . 2 Hover . | . . . Flight . | . . . Utility 3 | . 3 . Device 1 | . 1 . Storage 2 | . 2 . Processor . | . . . Hackware . | . . . Protection . | . . . Artifact . | . . . Weapon 8 | 1 4 3 Energy Gun 2 | 1 . 1 Energy Cannon 2 | . 2 . Ballistic Gun 2 | . 2 . Ballistic Cannon . | . . . Launcher 2 | . . 2 Special Weapon . | . . . Impact Weapon . | . . . Slashing Weapon . | . . . Piercing Weapon . | . . . Special Melee Weapon . | . . . Unidentified Prototypes . | . . . Parts Lost 17 | . 7 10 Power 3 | . 2 1 Propulsion 5 | . 1 4 Utility 1 | . . 1 Weapon 8 | . 4 4 Highest Loss Streak 6 | . 3 6 To Critical Strikes . | . . . Average Slot Usage (%) 86 | . 86 86 Engine 7 | . 7 10 Core 4 | . 4 3 Treads 8 | . 11 . Leg 12 | . 15 6 Wheel 5 | . . 20 Device 6 | . 4 13 Storage 16 | . 17 14 Energy Gun 4 | . 5 . Energy Cannon 7 | . 8 5 Ballistic Gun 8 | . 11 . Launcher 2 | . . 10 Peak Build Rating 12 | 6 11 12 Average Rating 7 | 6 7 8 On Entrance 7 | 6 6 11 Naked Turns . | . . . Heaviest Build 54 | 12 54 53 Greatest Support 40 | 40 40 32 Greatest Overweight (x) 2 | . 2 2 Average Overweight (x) 1 | . 1 1 Largest Inventory Capacity 25 | 8 25 20 Average Capacity 19 | 8 19 20 Most Carried 13 | 8 13 10 Average Carried 8 | 6 9 6 Final Capacity 20 | 8 20 20 Final Carried 9 | 8 9 6 Class Distribution -------------------- 100% | Mutant Dominant Class ---------------- Mutant | -10/Materials Mutant | -10/Mines Resources | -11 -10 -10 ----------- Run | Yrd Mat Min Matter Collected 605 | 200 340 65 Remotely . | . . . Salvage Created 930 | 68 794 68 Parts 63 | 5 54 4 Haulers Intercepted 1 | . 1 . Recyclers Shooed . | . . . Parts Field Recycled . | . . . Retrieved Matter . | . . . Parts Self-Destructed . | . . . Prevented . | . . . Kills | -11 -10 -10 ------- Run | Yrd Mat Min Combat Hostiles Destroyed 33 | . 19 14 Guns 12 | . 12 . Cannons 6 | . 6 . AOE 15 | . 1 14 Classes Destroyed 8 | 1 6 1 Worker 1 | . 1 . Builder 2 | . 1 1 Hauler 1 | . 1 . Recycler 1 | 1 . . Watcher 2 | . 2 . Swarmer 5 | . 5 . Grunt 15 | . 14 1 Assembled 13 | . . 13 Best Kill Streak 14 | 1 4 14 Combat Bots Only 13 | . 4 13 Max Kills in Single Turn 6 | 1 2 6 Gunslinging . | . . . Exploded 6 | . 1 6 Melee . | . . . Uniques/NPCs Destroyed . | . . . Combat | -11 -10 -10 -------- Run | Yrd Mat Min Hostile Shots Fired 165 | . 117 48 Missed 39 | . 28 11 Damage Taken 1728 | . 1042 686 Core 257 | . 113 144 Absorbed by Shields . | . . . Core Remaining (%) 100 | 100 . . Volleys Fired 100 | 2 78 20 Largest 2 | 2 2 2 Hottest 120 | 80 120 120 Shots Fired 156 | 4 126 26 Gun 119 | 4 108 7 Cannon 28 | . 18 10 Launcher 9 | . . 9 Special . | . . . Kinetic 66 | . 66 . Thermal 28 | . 18 10 Explosive 9 | . . 9 Electromagnetic 53 | 4 42 7 Robot Hit Streak 8 | 1 8 8 Robot Miss Streak 6 | 1 6 1 Penetration Max . | . . . Secondary Targets 3 | . 3 . Max Gunslinging Chain 1 | . 1 . Shots Hit Robots 98 | 2 77 19 Core Hits 68 | 2 36 30 Critical Kills . | . . . Critical Parts Destroyed 1 | . 1 . Critical Strikes 2 | . 2 . Destroy 1 | . 1 . Corrupt 1 | . 1 . Melee Attacks . | . . . Impact . | . . . Slashing . | . . . Piercing . | . . . Sneak Attacks . | . . . Combat Hostiles . | . . . Follow-up Attacks . | . . . Damage Inflicted 2588 | 27 1254 1307 Guns 1033 | 27 954 52 Cannons 262 | . 139 123 Explosions 1293 | . 161 1132 Melee . | . . . Ramming . | . . . Kinetic 539 | . 539 . Thermal 423 | . 300 123 Explosive 1132 | . . 1132 Electromagnetic 494 | 27 415 52 Impact . | . . . Slashing . | . . . Piercing . | . . . Highest Corruption 5 | . 5 5 Average Corruption 3 | . 2 5 Corruption Purged . | . . . Corruption Blocked . | . . . Effects 25 | . 15 10 Message Errors 6 | . 2 4 Matter Fused 6 | . 3 3 Heat Flow Errors 2 | . 1 1 Energy Discharges 5 | . 3 2 Parts Fused 1 | . 1 . Data Loss (minor) 2 | . 2 . Data Loss (major) 1 | . 1 . Misfires 1 | . 1 . Alerts 1 | . 1 . Overload Shots . | . . . Overflow Damage 65 | . . 65 Projectiles . | . . . Explosions 65 | . . 65 Melee . | . . . Knockbacks . | . . . Impact . | . . . Kinetic . | . . . Secondary . | . . . Self-Inflicted Damage 149 | . . 149 Shots 5 | . . 5 Rammed . | . . . Targets Rammed 1 | . 1 . Kicked 1 | . 1 . Crushed . | . . . Highest Temperature 253 | 18 242 253 Average Temperature 64 | 12 66 65 Received Heat Transfer 721 | . 480 241 Siege Activations . | . . . Robots Corrupted . | . . . Combat Hostiles . | . . . Parts Fried 2 | . 2 . Impact Corruptions . | . . . Robots Melted . | . . . Combat Hostiles . | . . . Parts Melted . | . . . Heat Transferred 855 | . 596 259 Parts Sabotaged . | . . . Parts Stolen . | . . . Parts Stripped . | . . . Power Chain Reactions 4 | . 4 . Alert | -11 -10 -10 ------- Run | Yrd Mat Min Peak Influence 233 | 5 233 51 Initial 43 | . 3 43 Average 62 | 3 73 34 Maximum Alert Level 1 | . 1 . Low Security (%) 94 | 100 92 100 Level 1 5 | . 7 . Level 2 . | . . . Level 3 . | . . . Level 4 . | . . . Level 5 . | . . . High Security . | . . . Max Security . | . . . Squads Dispatched 2 | . 2 . Investigation 2 | . 2 . Extermination . | . . . Reinforcement . | . . . Assault . | . . . Garrison . | . . . Intercept . | . . . Searches Triggered . | . . . Construction Impeded . | . . . Haulers Reinforced . | . . . Active Scanning Responses . | . . . Cargo Convoy Interrupts . | . . . Stealth | -11 -10 -10 --------- Run | Yrd Mat Min Distress Signals 1 | . 1 . Communications Jammed . | . . . Distress Signals . | . . . Times Spotted 49 | . 29 20 Peak Tracking Total 14 | . 4 14 Tactical Retreats 3 | . 2 1 Traps | -11 -10 -10 ------- Run | Yrd Mat Min Traps Triggered 3 | . 3 . Indirectly . | . . . Trap Hack Attempts . | . . . Triggered . | . . . Disarmed . | . . . Reprogrammed . | . . . Reused . | . . . Traps Extracted . | . . . Installed . | . . . Triggered . | . . . Machines | -11 -10 -10 ---------- Run | Yrd Mat Min Machines Disabled . | . . . Max in Single Turn . | . . . Machines Repaired . | . . . Machines Dismantled . | . . . Machines Sabotaged . | . . . Overloaded Fab Kills . | . . . Hacking | -11 -10 -10 --------- Run | Yrd Mat Min Machines Accessed 6 | . 6 . Terminals 4 | . 4 . Fabricators . | . . . Repair Stations . | . . . Recycling Units 2 | . 2 . Scanalyzers . | . . . Garrison Access . | . . . Total Hacks 15 | . 15 . Successful 8 | . 8 . Failed 7 | . 7 . Catastrophic . | . . . Database Lockouts . | . . . Manual 13 | . 13 . Terminals 11 | . 11 . Fabricators . | . . . Repair Stations . | . . . Recycling Units 4 | . 4 . Scanalyzers . | . . . Garrison Access . | . . . Terminal Hacks 1 | . 1 . Robot Analysis 1 | . 1 . Fabricator Hacks . | . . . Repair Station Hacks . | . . . Recycling Unit Hacks 1 | . 1 . Report Inventory 1 | . 1 . Scanalyzer . | . . . Garrison Access Hacks . | . . . Unauthorized Hacks 6 | . 6 . Terminals 5 | . 5 . Assimilate 1 | . 1 . Botnet 4 | . 4 . Fabricators . | . . . Repair Stations . | . . . Recycling Units 1 | . 1 . Tunnel 1 | . 1 . Scanalyzers . | . . . Garrison Access . | . . . Data Cores Recovered . | . . . Used . | . . . Hacking Detections 5 | . 5 . Full Trace Events 1 | . 1 . Feedback Events 1 | . 1 . Corruption 1 | . 1 . Feedback Blocked . | . . . Robot Schematics Acquired . | . . . Robots Built . | . . . Authchips . | . . . Time . | . . . Total Robot Build Rating . | . . . Part Schematics Acquired . | . . . Parts Built . | . . . Authchips . | . . . Time . | . . . Total Part Build Rating . | . . . Parts Repaired . | . . . Time . | . . . Parts Recycled . | . . . Recycled Matter . | . . . Retrieved Matter . | . . . Retrieved Components . | . . . Parts Scanalyzed . | . . . Part Schematics Acquired . | . . . Parts Damaged . | . . . Bothacking | -11 -10 -10 ------------ Run | Yrd Mat Min Used RIF Installer . | . . . Robots Hacked . | . . . Non-combat . | . . . Combat . | . . . Robot Hacks Applied . | . . . Relay Couplers Released . | . . . Fabnet Peak Effective % . | . . . Robots Rewired . | . . . Allies Hacked . | . . . Hacks Repelled . | . . . Allies | -11 -10 -10 -------- Run | Yrd Mat Min Total Allies . | . . . Largest Group . | . . . Highest-Rated Group . | . . . Highest-Rated Ally . | . . . Total Orders . | . . . Ally Attacks . | . . . Total Damage . | . . . Kills . | . . . Allies Corrupted . | . . . Allies Melted . | . . . Intel | -11 -10 -10 ------- Run | Yrd Mat Min Robot Analysis Total 1 | . 1 . Derelict Logs Recovered 2 | . . 2 Drone Launches . | . . . Drone Recoveries . | . . . Exploration | -11 -10 -10 ------------- Run | Yrd Mat Min Turns Passed 2150 | 37 1574 539 Spaces Moved 916 | 15 531 370 Core . | . . . Treads 247 | 15 232 . Legs 336 | . 299 37 Wheels 333 | . . 333 Hover . | . . . Flight . | . . . Fastest Speed 115 | 160 160 115 Average Speed 201 | 160 252 129 Slowest Speed 320 | 160 320 260 Overloaded Moves . | . . . Propulsion Burnouts . | . . . Robots Hopped . | . . . Cave-ins Triggered . | . . . Exploration Rate (%) 53 | 3 82 74 Regions Visited 2 Branch Regions 1 Pre-discovered Areas 2 | . 1 1 Known Exits Taken . | . . . Unknown Exits Taken 2 | 1 1 . Scrap Searched 1 | . . 1 Spaces Dug . | . . . Terrain Destroyed 78 | . 10 68 Melee . | . . . Projectile . | . . . AOE 78 | . 10 68 Terrain Rammed . | . . . Walls Destroyed . | . . . Machines Disabled . | . . . Actions | -11 -10 -10 --------- Run | Yrd Mat Min Total 1065 | 23 638 404 Wait 9 | . 4 5 Move 914 | 14 530 370 Hop . | . . . Pick Up 14 | 3 8 3 Fast Attach 5 | . 5 . Attach 12 | . 6 6 Detach 1 | . 1 . Swap 4 | 3 1 . Drop 5 | 1 4 . Fire 100 | 2 78 20 Melee . | . . . Ram . | . . . Kick 1 | . 1 . Crush . | . . . Escape Stasis . | . . . Rewire . | . . . Trap . | . . . Miscellaneous . | . . . Route ------- -11/Scrapyard -10/Materials (discovered 4 exits: [*Mat x2] / [*Min x2]) -10/Mines History --------- Turn | Location | Event 9 | -11/Scrapyard | Discovered new exit (range 2) 38 | -11/Scrapyard | Entered Materials 71 | -10/Materials | Discovered new exit (range 15) 314 | -10/Materials | Build established: Mutant 907 | -10/Materials | Discovered new exit (range 16) 984 | -10/Materials | Discovered new exit (range 9) 1174 | -10/Materials | Lost 3 parts (1p2w) 1511 | -10/Materials | Discovered new exit (range 16) 1612 | -10/Materials | Entered Mines 1660 | -10/Mines | Learned Materials non-interactive machine intel 1707 | -10/Mines | Core integrity fell below 50% 1748 | -10/Mines | Core integrity fell below 20% 1772 | -10/Mines | Lost 6 parts (1p2n3w) 1935 | -10/Mines | Learned 8 Materials zone layouts 1951 | -10/Mines | Received a Rocket Launcher from a helpful Derelict 2129 | -10/Mines | Assembled infested the area 2134 | -10/Mines | Assisted by a Guerilla fighting off Assembled 2141 | -10/Mines | Found a damaged Exp. Sensor Array with a note attached 2146 | -10/Mines | Found Prototype Device 2151 | -10/Mines | Destroyed by as-93534 with Assembled Maul Last Messages --------------- 02143_ U-05 Engineer lays Concrete. 02145_ Com. Wheel destroyed. 02145_ U-05 Engineer lays Concrete. 02146_ Acquired Prototype Device. 02146_ U-05 Engineer lays Concrete. 02147_ as-73254 destroyed. 02147_ as-24201 destroyed. 02147_ as-36840 destroyed. 02147_ U-05 Engineer destroyed. 02147_ Destroyed Asb. Hover Unit. 02147_ Imp. Heat Sink destroyed. 02147_ Grenade Launcher destroyed. 02148_ Com. Wheel destroyed. 02150_ as-29964 destroyed. 02150_ as-69337 destroyed. 02150_ Destroyed Asb. Hover Unit. 02150_ as-44657 destroyed. 02150_ as-15196 destroyed. 02150_ as-90153 destroyed. 02150_ as-36575 destroyed. Map ----- +----------------------------------------------------+ | | | | | | | | | | | ?????????????????????????????????????????????????? | | ?????????????????????????????????????????????????? | | ?????????????????????????????????????????????????? | | ?????????????????????????????????????????????????? | | ?????????????????????????????????????????????????? | | ?????????????????????????????????????????????????? | | ?????????????????????????????????????????????????? | | ?????????????????????????????????????????????????? | | ??????????????? ????????????????????????????????? | | ???????????????? ???????????????????????????????? | | ????????????????# ??????????????????????????????? | | ??????????????### #?????????????????????????????? | | ??????????????# a ###??????????????????????????? | | ??????????????# a% ??????????????????????????? | | ??????????????# a% ?????????????????????????? | | ???????????? ## a ?????????????????????????? | | ??????????? ####?????????????????????? | | ?????????? #?????????????????????? | | ?????????? ###???????????????????? | | ??????????????# a ###?????????????????? | | ???###?????????# % @ ##????????????????? | | ??## ##???????# #????????????????? | | ??# ##??????# ##????????????????? | | ??# #??????# ### #?????????????????? | | ??# #??????# ??##= #???????#?????????? | | ???# #??????## ????#%* ##? ????? ?????????? | | ???## ##??????####????##!%=##?? ????? ??????#### | | ????# ##??####??????## !##??# ????? ????? | | ????## #### ####???# ##### #???# #???# | | ?????## ## ##??# #???# #???#""" | | ??????#### #### #### #???# #???#""" | | ?????????## ## ##??# ????# #???#""" | | ??????????## ## ###???# ##??# #???#""" | | ???????????######## ######## ##?# #???# | | ??????????????????## ### #???### ## | | ???????????????????## ## ##????# #? | | ????????????????????## ### ##### ###### ## | | ?????????????????????####?# #???# | | ??????????????????????????# ##??# | | ???????????????????????#### ##?# ####### | | ??????????????????????## ### ##?????# | | ???????????????????#### """" ## ## ##??????# | | ??????????????????## """" ## #####???????# | | ?????????????????## """" ## #???????????# | | ?????????????????# ### #????????#### | +----------------------------------------------------+ Best States ------------- Heat Dissipation 39 Energy Generation 14 Energy Capacity 250 Matter Stores 300 Matter Capacity 300 Sight Range 16 Terrain Scan Density 10 Evasion (%) 40 Recoil Reduction 2 Item Schematics ----------------- None Robot Schematics ------------------ None Fabricated ------------ Nothing Alien Tech Used ----------------- None Achievements -------------- None Challenges ------------ None Game ------ Seed ProtonMappingExtractor Manual? 0 Play Time 00:11:12 Cumulative 74.4 hours Start 2024.11.14 @ 15:16:45 End 2024.11.14 @ 15:25:48 Sessions 1 Manual Loads 0 Difficulty Rogue Special Mode None Game No. 129 Rogue 129 Adventurer 0 Explorer 0 Win Type - Total 0 Types 0/0/0/0/0/0/0/0/0 Lore% 41 Gallery% 35 Achievement% 34 Wizard Run 0 Options --------- Layout 0 ASCII 0 Keyboard 0 Movement Mouse Keybinds 0 Fullscreen 1 Font 24/Smallcaps Map View 91x25 Zoom Use 93% Tactical HUD 1 Map Filters NONE Filters NONE Steam 1 RUN: 26956e9b-c1af-4b56-8a16-14e88b686415